bitfinex/quotes_BTCUSD_20240819
["timestamp","ask_amount","ask_price","bid_price","bid_amount"]
[1724091300793,0.51115516,58867.0,58866.0,2.84397279]
[1724091301008,0.51115516,58867.0,58866.0,4.10507135]
[1724091301009,0.51015516,58867.0,58866.0,4.10507135]
[1724091301234,0.50915516,58867.0,58866.0,4.00421879]
[1724091301448,0.50915516,58867.0,58866.0,3.76769345]
[1724091301449,0.51115516,58867.0,58866.0,3.76769345]
[1724091301650,0.51115516,58867.0,58866.0,3.32675523]
[1724091302678,0.58975516,58867.0,58866.0,0.53514446]
[1724091302907,0.65305516,58867.0,58866.0,0.19539046]
[1724091303113,0.65405516,58867.0,58866.0,0.20339046]
[1724091303323,0.65505516,58867.0,58866.0,0.54314446]
[1724091303737,0.65405516,58867.0,58866.0,0.53514446]
[1724091303916,0.65305516,58867.0,58866.0,0.53514446]
[1724091304180,0.65305516,58867.0,58866.0,0.54214446]
[1724091304395,0.65305516,58867.0,58866.0,0.02951346]
[1724091304396,1.16267716,58867.0,58866.0,0.02951346]
[1724091304601,1.16267716,58867.0,58866.0,0.02551346]
[1724091304803,1.16267716,58867.0,58866.0,0.00822]
[1724091305007,1.16267716,58867.0,58866.0,0.02752048]
[1724091305213,1.16267716,58867.0,58866.0,0.01022]
[1724091305420,0.82292916,58867.0,58866.0,0.02752048]
[1724091305626,0.65305516,58867.0,58866.0,0.180097]
[1724091305834,0.65305516,58867.0,58866.0,0.19839748]
[1724091306038,0.65305516,58867.0,58866.0,0.19539748]
[1724091306240,0.65305516,58867.0,58866.0,0.19639748]
[1724091306646,0.65305516,58867.0,58866.0,0.53615148]
[1724091307295,0.65305516,58867.0,58866.0,0.87590548]
[1724091307889,0.65305516,58867.0,58866.0,1.21565948]
[1724091309169,0.58875516,58867.0,58866.0,1.21565948]
[1724091309379,0.50915516,58867.0,58866.0,1.72676225]
[1724091310422,0.50915516,58867.0,58866.0,1.73306225]
[1724091310626,0.50915516,58867.0,58866.0,1.73506225]
[1724091310861,0.50915516,58867.0,58866.0,2.18684424]
[1724091311090,0.50915516,58867.0,58866.0,2.26076139]
[1724091311305,0.50915516,58867.0,58866.0,4.14736325]
[1724091312151,0.50915516,58867.0,58866.0,4.15636325]
[1724091312152,0.51015516,58867.0,58866.0,4.15636325]
[1724091312359,0.50915516,58867.0,58866.0,4.14736325]
[1724091312568,0.51015516,58867.0,58866.0,4.15236325]
[1724091312773,0.51115516,58867.0,58866.0,4.16136325]
[1724091312978,0.50915516,58867.0,58866.0,4.14736325]
[1724091313181,0.50915516,58867.0,58866.0,4.15736325]
[1724091313415,0.51115516,58867.0,58866.0,4.08798752]
[1724091313618,0.51015516,58867.0,58866.0,4.154315]
[1724091313827,0.50915516,58867.0,58866.0,4.157315]
[1724091314029,0.51015516,58867.0,58866.0,4.157315]
[1724091314230,0.51115516,58867.0,58866.0,4.164315]
[1724091315003,0.51115516,58867.0,58866.0,3.822561]
[1724091315219,0.51015516,58867.0,58866.0,3.812561]
[1724091315419,0.50915516,58867.0,58866.0,3.44641772]
[1724091315666,0.51015516,58867.0,58866.0,3.79517172]
[1724091315809,0.51015516,58867.0,58866.0,3.42596193]
[1724091316008,0.51015516,58867.0,58866.0,3.42596216]
[1724091316204,0.51115516,58867.0,58866.0,3.77371616]
[1724091316585,0.51115516,58867.0,58866.0,3.40566216]
[1724091316893,0.51015516,58867.0,58866.0,3.34579024]
[1724091317002,0.50915516,58867.0,58866.0,3.33679024]
[1724091317210,0.51115516,58867.0,58866.0,3.35279024]
[1724091317836,0.51115516,58867.0,58866.0,3.35479024]
[1724091318455,0.50915516,58867.0,58866.0,3.33879024]
[1724091318690,0.50915516,58867.0,58866.0,3.75941616]
[1724091318691,0.51015516,58867.0,58866.0,3.75941616]
[1724091318932,0.51115516,58867.0,58866.0,3.76441616]
[1724091319178,0.51115516,58867.0,58866.0,3.71354424]
[1724091319406,0.44220516,58867.0,58866.0,3.71684424]
[1724091319655,0.05074172,58894.0,58866.0,3.71684424]
[1724091319656,0.4684,58897.0,58896.0,0.16979]
[1724091319858,0.4684,58907.0,58900.0,0.169776]
[1724091320068,0.4684,58907.0,58899.0,0.169781]
[1724091320069,0.51404632,58904.0,58899.0,0.169781]
[1724091320286,0.1412,58905.0,58900.0,0.169778]
[1724091320485,0.0635,58902.0,58900.0,0.01726191]
[1724091320685,0.0777,58901.0,58900.0,0.52659691]
[1724091320898,0.0777,58901.0,58900.0,0.18703891]
[1724091321097,0.0777,58901.0,58900.0,0.52659891]
[1724091321511,0.0777,58901.0,58900.0,0.18704091]
[1724091322129,0.0777,58901.0,58900.0,0.18804091]
[1724091322555,0.0777,58901.0,58900.0,0.18704091]
[1724091322756,0.0817,58901.0,58900.0,0.52659891]
[1724091322963,0.0797,58901.0,58900.0,0.52659891]
[1724091323167,0.0797,58901.0,58900.0,0.18704091]
[1724091323421,0.0837,58901.0,58900.0,0.52659891]
[1724091323660,0.0817,58901.0,58900.0,0.18704091]
[1724091323901,0.0837,58901.0,58900.0,0.18704091]
[1724091324347,0.0837,58901.0,58900.0,0.52659891]
[1724091324605,0.0837,58901.0,58900.0,0.18704091]
[1724091324845,0.0837,58901.0,58900.0,0.52659891]
[1724091325076,0.0877,58901.0,58900.0,0.52659891]
[1724091325580,0.0877,58901.0,58900.0,0.86615691]
[1724091325853,0.0577,58901.0,58900.0,0.52659891]
[1724091326320,0.05860311,58901.0,58900.0,0.52659891]
[1724091327236,0.05860311,58901.0,58900.0,1.37706368]
[1724091327734,0.05860311,58901.0,58900.0,1.03750568]
[1724091328229,0.05060311,58901.0,58900.0,1.03750568]
[1724091328740,0.04860311,58901.0,58900.0,0.01726191]
[1724091328965,0.04860311,58901.0,58897.0,0.1]
[1724091329213,0.04860311,58901.0,58900.0,0.177779]
[1724091329927,0.04860311,58901.0,58900.0,0.19492915]
[1724091330176,0.04860311,58901.0,58900.0,0.18692915]
[1724091330429,0.04860311,58901.0,58900.0,0.52648715]
[1724091331162,0.04860311,58901.0,58900.0,0.86604515]
[1724091331886,0.04860311,58901.0,58900.0,0.87004515]
[1724091332146,0.04860311,58901.0,58900.0,0.87404515]
[1724091337730,0.04860311,58901.0,58900.0,0.53448715]
[1724091337973,0.04860311,58901.0,58900.0,0.87404515]
[1724091338207,0.04860311,58901.0,58900.0,0.87486615]
[1724091340748,0.62243111,58901.0,58900.0,0.02597115]
[1724091340967,0.1447,58890.0,58877.0,0.00996325]
[1724091341185,0.1447,58890.0,58873.0,0.06804]
[1724091341186,0.0802,58876.0,58873.0,0.06804]
[1724091341389,0.0802,58876.0,58875.0,0.849255]
[1724091341611,0.0802,58876.0,58875.0,0.509553]
[1724091341832,0.0802,58876.0,58874.0,0.169854]
[1724091342090,0.0645,58877.0,58867.0,0.17134877]
[1724091342091,0.0802,58873.0,58867.0,0.17134877]
[1724091342302,0.0802,58873.0,58870.0,0.169865]
[1724091342515,0.0802,58873.0,58872.0,0.16986]
[1724091342723,0.0802,58873.0,58867.0,0.17134877]
[1724091342928,0.0802,58873.0,58872.0,0.16986]
[1724091344177,0.0802,58873.0,58872.0,0.50958]
[1724091344380,0.0802,58873.0,58872.0,1.18902]
[1724091344795,0.0812,58873.0,58872.0,1.18902]
[1724091345002,0.001,58873.0,58872.0,1.36036877]
[1724091345267,0.001,58873.0,58872.0,1.37043331]
[1724091345470,0.002,58873.0,58872.0,1.37043331]
[1724091346335,0.002,58873.0,58872.0,1.71015331]
[1724091346564,0.003,58873.0,58872.0,1.71015331]
[1724091346782,0.001,58873.0,58872.0,1.81015331]
[1724091347464,0.001,58873.0,58872.0,3.31115331]
[1724091347712,0.0753,58882.0,58881.0,1.188838]
[1724091347934,0.0753,58882.0,58881.0,1.36018677]
[1724091348806,0.0753,58882.0,58881.0,1.37987563]
[1724091349031,0.0783,58882.0,58881.0,1.37987563]
[1724091349462,0.0803,58882.0,58881.0,1.38087563]
[1724091349689,0.0753,58882.0,58881.0,1.48069663]
[1724091349913,0.0753,58892.0,58881.0,1.82345863]
[1724091350137,0.0753,58892.0,58891.0,0.849025]
[1724091350381,0.00090311,58901.0,58895.0,0.50938]
[1724091350382,0.0753,58896.0,58895.0,0.50938]
[1724091350602,0.0753,58896.0,58895.0,1.02031577]
[1724091350815,0.0753,58896.0,58895.0,1.03999787]
[1724091351040,0.0753,58896.0,58895.0,1.37958487]
[1724091351787,0.00090311,58901.0,58900.0,1.528011]
[1724091352005,0.00090311,58901.0,58900.0,1.35980177]
[1724091352231,0.00090311,58901.0,58900.0,2.95980177]
[1724091352450,0.00090311,58901.0,58900.0,2.97948145]
[1724091353526,0.00190311,58901.0,58900.0,2.99569347]
[1724091353743,0.00190311,58901.0,58900.0,2.99669347]
[1724091353951,0.00190311,58901.0,58900.0,2.99569347]
[1724091354388,0.00290311,58901.0,58900.0,3.00469347]
[1724091354807,0.00090311,58901.0,58900.0,2.98969347]
[1724091355034,0.00090311,58901.0,58900.0,2.99069347]
[1724091355242,0.00290311,58901.0,58900.0,3.00569347]
[1724091355497,0.00290311,58901.0,58900.0,3.34725147]
[1724091355689,0.00190311,58901.0,58900.0,3.33625147]
[1724091356151,0.00290311,58901.0,58900.0,3.34725147]
[1724091356840,0.00290311,58901.0,58900.0,3.36825147]
[1724091357063,0.00290311,58901.0,58900.0,3.00469347]
[1724091357279,0.00290311,58901.0,58900.0,1.50469347]
[1724091362061,0.00290311,58901.0,58900.0,1.84525147]
[1724091362706,0.00290311,58901.0,58900.0,2.54736747]
[1724091362919,0.00290311,58901.0,58900.0,2.54936747]
[1724091363360,0.00290311,58901.0,58900.0,4.04736747]
[1724091363581,0.00290311,58901.0,58900.0,4.04936747]
[1724091364021,0.00190311,58901.0,58900.0,4.04036747]
[1724091364236,0.00190311,58901.0,58900.0,4.04336747]
[1724091364481,0.00290311,58901.0,58900.0,4.04336747]
[1724091364918,0.00190311,58901.0,58900.0,4.03736747]
[1724091365168,0.00290311,58901.0,58900.0,4.05136747]
[1724091365399,0.00290311,58901.0,58900.0,3.36925147]
[1724091365619,0.00290311,58901.0,58900.0,1.87025147]
[1724091365844,0.00290311,58901.0,58900.0,1.84725147]
[1724091366745,0.00290311,58901.0,58900.0,1.84925147]
[1724091367003,0.00290311,58901.0,58900.0,1.87025147]
[1724091369251,0.00290311,58901.0,58900.0,1.87225147]
[1724091369480,0.00290311,58901.0,58900.0,1.87025147]
[1724091369944,0.00290311,58901.0,58900.0,2.20980947]
[1724091370167,0.00290311,58901.0,58900.0,1.86925147]
[1724091370385,0.06900311,58901.0,58900.0,1.74625147]
[1724091370878,0.00290311,58901.0,58900.0,1.74625147]
[1724091371306,0.00290311,58901.0,58900.0,1.74725147]
[1724091371521,0.00090311,58901.0,58900.0,1.73025147]
[1724091371733,0.00190311,58901.0,58900.0,1.84225147]
[1724091372168,0.00090311,58901.0,58900.0,2.16980947]
[1724091372399,0.00090311,58901.0,58900.0,1.83025147]
[1724091372612,0.00190311,58901.0,58900.0,1.84425147]
[1724091372858,0.00190311,58901.0,58900.0,2.24040947]
[1724091373068,0.00190311,58901.0,58900.0,2.25240947]
[1724091373069,0.00290311,58901.0,58900.0,2.25240947]
[1724091373290,0.00290311,58901.0,58900.0,2.25323047]
[1724091373520,0.00190311,58901.0,58900.0,2.24123047]
[1724091373738,0.00290311,58901.0,58900.0,2.25323047]
[1724091374177,0.00290311,58901.0,58900.0,3.75523047]
[1724091375870,0.00290311,58901.0,58900.0,3.75323047]
[1724091376315,0.00290311,58901.0,58900.0,3.75723047]
[1724091376730,0.00290311,58901.0,58900.0,3.75323047]
[1724091376932,0.00290311,58901.0,58900.0,3.75523047]
[1724091377579,0.00290311,58901.0,58900.0,3.75723047]
[1724091377986,0.00290311,58901.0,58900.0,3.82523547]
[1724091378616,0.00290311,58901.0,58900.0,3.82123547]
[1724091378818,0.00290311,58901.0,58900.0,1.95007747]
[1724091379014,0.00290311,58901.0,58900.0,2.28963547]
[1724091380965,0.00290311,58901.0,58900.0,2.32523547]
[1724091380966,1.1e-07,58901.0,58900.0,2.32523547]
[1724091381423,1.1e-07,58901.0,58900.0,3.82523547]
[1724091381628,1.1e-07,58901.0,58900.0,4.16479347]
[1724091381781,1.1e-07,58901.0,58900.0,4.15079347]
[1724091382189,1.1e-07,58901.0,58900.0,4.16479347]
[1724091382190,0.00100011,58901.0,58900.0,4.16479347]
[1724091382816,1.1e-07,58901.0,58900.0,4.16479347]
[1724091383176,1.1e-07,58901.0,58900.0,4.15079347]
[1724091383379,1.1e-07,58901.0,58900.0,3.77563547]
[1724091383597,0.07799142,58907.0,58906.0,1.527853]
[1724091383817,0.07799142,58907.0,58906.0,1.81840217]
[1724091384901,0.07799142,58907.0,58906.0,2.16192517]
[1724091385103,0.00090421,58908.0,58907.0,1.528831]
[1724091385305,0.00090421,58908.0,58907.0,1.70017977]
[1724091385532,0.00090421,58908.0,58907.0,1.84237968]
[1724091385759,2.1e-07,58908.0,58907.0,2.55701568]
[1724091386299,0.00090421,58917.0,58907.0,2.55701568]
[1724091386300,0.00090421,58917.0,58916.0,1.870063]
[1724091386518,0.00090421,58917.0,58916.0,2.45331177]
[1724091386719,0.00090421,58917.0,58916.0,2.47050517]
[1724091386916,0.00090421,58917.0,58916.0,3.60703917]
[1724091387120,0.08140421,58917.0,58916.0,3.31813917]
[1724091387593,0.08140421,58917.0,58916.0,3.60803917]
[1724091387799,0.08140421,58917.0,58916.0,3.61803917]
[1724091388032,0.08140421,58917.0,58916.0,3.32913917]
[1724091388447,0.08140421,58917.0,58916.0,3.33902395]
[1724091389074,0.08140421,58917.0,58916.0,3.35002395]
[1724091391171,0.14270421,58917.0,58916.0,3.01055795]
[1724091395560,0.14270421,58917.0,58916.0,3.00067317]
[1724091395764,0.14270421,58917.0,58916.0,2.90067317]
[1724091396623,0.14270421,58917.0,58916.0,1.2293244]
[1724091396826,0.14270421,58917.0,58916.0,0.8898584]
[1724091397613,0.14270421,58917.0,58916.0,0.8788584]
[1724091398019,0.31243421,58917.0,58916.0,0.0191934]
[1724091398247,0.1452,58911.0,58908.0,0.000821]
[1724091398455,0.314953,58909.0,58908.0,0.000821]
[1724091398563,0.1452,58909.0,58900.0,0.000821]
[1724091398764,0.314976,58901.0,58900.0,0.000821]
[1724091398971,0.654528,58901.0,58900.0,0.000821]
[1724091399179,0.99508,58901.0,58900.0,0.000821]
[1724091399386,0.339599,58893.0,58886.0,0.339637]
[1724091399605,0.0792,58897.0,58887.0,0.01701736]
[1724091399809,0.169813,58888.0,58882.0,0.339661]
[1724091400028,0.169813,58888.0,58881.0,0.000821]
[1724091400029,0.1452,58886.0,58883.0,0.35667529]
[1724091400225,0.1452,58886.0,58885.0,0.169822]
[1724091400669,0.1452,58886.0,58885.0,0.18684032]
[1724091401520,0.1452,58886.0,58885.0,0.52648532]
[1724091402344,0.1452,58886.0,58885.0,0.53548532]
[1724091402805,0.1452,58886.0,58885.0,0.52648532]
[1724091402975,0.1452,58886.0,58885.0,0.54248532]
[1724091403199,0.1452,58886.0,58885.0,0.53248532]
[1724091403548,0.1452,58886.0,58885.0,0.53848532]
[1724091405471,0.1452,58886.0,58885.0,0.87813032]
[1724091406204,0.1452,58886.0,58885.0,2.37813032]
[1724091406412,0.1452,58886.0,58885.0,2.03848532]
[1724091406619,0.1452,58886.0,58885.0,1.52901832]
[1724091407199,0.1452,58886.0,58885.0,1.69884032]
[1724091407613,0.1452,58886.0,58885.0,0.19884032]
[1724091407816,0.3465201,58886.0,58885.0,0.02901832]
[1724091408023,0.654658,58886.0,58885.0,0.02901832]
[1724091408631,0.994297,58886.0,58885.0,0.02901832]
[1724091408833,0.994297,58886.0,58885.0,0.012]
[1724091408963,1.1277895,58886.0,58885.0,0.012]
[1724091409172,1.4674285,58886.0,58885.0,0.012]
[1724091409371,1.4674285,58886.0,58881.0,0.000821]
[1724091409372,0.849155,58882.0,58881.0,0.000821]
[1724091409575,0.997955,58882.0,58881.0,0.000821]
[1724091409983,1.337617,58882.0,58881.0,0.000821]
[1724091410184,1.48861248,58882.0,58881.0,0.000821]
[1724091410887,1.48961248,58882.0,58881.0,0.001821]
[1724091411047,1.48961248,58882.0,58881.0,0.000821]
[1724091411246,1.48861248,58882.0,58881.0,0.000821]
[1724091411472,0.998955,58882.0,58881.0,0.001821]
[1724091411672,0.998955,58882.0,58881.0,0.000821]
[1724091412021,1.004955,58882.0,58881.0,0.001821]
[1724091413062,1.016955,58882.0,58881.0,0.002821]
[1724091413259,1.17085138,58882.0,58881.0,0.002821]
[1724091413756,1.17085138,58882.0,58866.0,0.178096]
[1724091413757,0.169866,58870.0,58866.0,0.178096]
[1724091413966,0.0776,58868.0,58866.0,0.00822]
[1724091414169,0.0776,58868.0,58867.0,0.01728305]
[1724091414547,0.0776,58868.0,58867.0,0.18715705]
[1724091415816,0.1438,58868.0,58867.0,0.19015705]
[1724091416018,0.1438,58868.0,58867.0,0.02028305]
[1724091416272,0.1438,58868.0,58867.0,0.19015705]
[1724091416489,0.1438,58868.0,58867.0,0.52990505]
[1724091417134,0.1438,58868.0,58867.0,0.53290505]
[1724091417341,0.1438,58868.0,58867.0,0.87265305]
[1724091417540,0.1438,58868.0,58867.0,0.53290505]
[1724091418192,0.1438,58868.0,58867.0,0.02328305]
[1724091418418,0.1438,58868.0,58867.0,0.19315705]
[1724091418828,0.1751664,58868.0,58867.0,0.02328305]
[1724091419132,1.0245234,58868.0,58867.0,0.02328305]
[1724091419338,1.0245234,58868.0,58864.0,0.00011]
[1724091419339,0.50964,58865.0,58864.0,0.00011]
[1724091419545,1.33226,58865.0,58864.0,0.00011]
[1724091420173,1.50360877,58865.0,58864.0,0.00011]
[1724091420381,1.329682,58859.0,58858.0,0.00822]
[1724091420604,0.989887,58859.0,58858.0,0.00822]
[1724091420822,0.650092,58859.0,58858.0,0.00822]
[1724091421029,0.989887,58859.0,58858.0,0.00822]
[1724091421663,0.317297,58859.0,58858.0,0.00922]
[1724091421872,0.1474,58859.0,58858.0,0.02542721]
[1724091422087,0.310297,58859.0,58858.0,0.00822]
[1724091422295,0.1474,58859.0,58858.0,0.02542721]
[1724091422500,0.1474,58859.0,58858.0,0.51892]
[1724091422704,0.1474,58859.0,58858.0,0.53518731]
[1724091422909,0.1584,58859.0,58858.0,0.53618731]
[1724091423321,0.1474,58859.0,58858.0,0.53518731]
[1724091423539,0.169881,58865.0,58864.0,0.509649]
[1724091423540,0.0637,58865.0,58864.0,0.509649]
[1724091423757,0.0637,58865.0,58861.0,0.33978]
[1724091423955,0.0637,58865.0,58864.0,0.01626441]
[1724091424163,0.1404,58865.0,58862.0,0.339776]
[1724091424373,0.31028,58865.0,58864.0,0.01626441]
[1724091424582,0.0767,58864.0,58863.0,0.1861499]
[1724091424789,0.0767,58864.0,58863.0,0.169885]
[1724091424995,0.0767,58864.0,58859.0,0.339794]
[1724091425219,0.0767,58864.0,58862.0,0.169888]
[1724091425430,0.246583,58864.0,58861.0,0.001]
[1724091425640,0.0774,58863.0,58861.0,0.170891]
[1724091425849,0.247288,58862.0,58861.0,0.001]
[1724091426061,0.650165,58862.0,58861.0,0.001]
[1724091426476,0.989942,58862.0,58861.0,0.001]
[1724091426741,0.990287,58859.0,58858.0,0.00822]
[1724091426952,1.279187,58859.0,58858.0,0.00822]
[1724091427166,1.618982,58859.0,58858.0,0.00822]
[1724091427372,1.79033077,58859.0,58858.0,0.00822]
[1724091427583,1.96167954,58859.0,58858.0,0.00822]
[1724091427836,0.990287,58859.0,58858.0,0.00822]
[1724091428044,0.991287,58859.0,58858.0,0.00822]
[1724091428460,0.993287,58859.0,58858.0,0.00822]
[1724091428679,0.1438,58859.0,58858.0,0.00822]
[1724091428877,0.1438,58859.0,58858.0,0.17812]
[1724091429083,0.1438,58859.0,58858.0,0.19448345]
[1724091429497,0.1438,58859.0,58858.0,0.02458345]
[1724091429701,0.1438,58859.0,58858.0,0.19448345]
[1724091429909,0.1438,58859.0,58858.0,0.53428345]
[1724091430118,0.1438,58859.0,58858.0,0.87408345]
[1724091430342,0.003,58859.0,58858.0,1.72503222]
[1724091430555,0.003,58859.0,58858.0,1.82503222]
[1724091431212,0.003,58859.0,58858.0,0.97408345]
[1724091431420,0.003,58859.0,58858.0,1.31388345]
[1724091431657,0.0778,58864.0,58863.0,0.169886]
[1724091431861,0.0778,58864.0,58863.0,0.18557402]
[1724091432300,0.1384,58864.0,58863.0,0.18557402]
[1724091432935,0.648049,58864.0,58863.0,0.01568802]
[1724091433138,0.987815,58864.0,58863.0,0.01568802]
[1724091433346,0.987815,58864.0,58858.0,0.02222]
[1724091433347,0.648092,58859.0,58858.0,0.00822]
[1724091433578,1.276787,58859.0,58858.0,0.00822]
[1724091434020,1.79293077,58859.0,58858.0,0.00822]
[1724091434286,1.276872,58853.0,58852.0,0.00821]
[1724091434500,1.78804977,58853.0,58852.0,0.00821]
[1724091435125,1.44822077,58853.0,58852.0,0.00821]
[1724091436203,1.45522077,58853.0,58852.0,0.00921]
[1724091436445,0.1454,58853.0,58852.0,0.00921]
[1724091436649,0.1384,58853.0,58852.0,0.00821]
[1724091436883,0.1384,58853.0,58852.0,0.02288502]
[1724091437092,0.1464,58853.0,58852.0,0.19380202]
[1724091437304,0.1464,58853.0,58852.0,0.53463702]
[1724091437305,0.0948,58853.0,58852.0,0.53463702]
[1724091437519,0.0778,58853.0,58852.0,0.53263702]
[1724091437927,0.0918,58853.0,58852.0,0.53463702]
[1724091438137,0.0848,58853.0,58852.0,0.19380202]
[1724091438355,0.0848,58853.0,58852.0,0.02388502]
[1724091438570,0.0898,58853.0,58852.0,0.02388502]
[1724091438788,0.259714,58853.0,58852.0,0.02388502]
[1724091439002,0.592543,58853.0,58852.0,0.02288502]
[1724091439214,0.932372,58853.0,58852.0,0.00821]
[1724091439436,0.932372,58853.0,58852.0,0.00921]
[1724091439866,1.405549,58853.0,58852.0,0.00821]
[1724091440062,1.06572,58853.0,58852.0,0.00821]
[1724091440738,1.24206877,58853.0,58852.0,0.00821]
[1724091442032,1.10872077,58853.0,58852.0,0.00821]
[1724091442248,0.0878,58853.0,58852.0,0.00821]
[1724091442460,0.0878,58853.0,58852.0,0.517962]
[1724091442667,0.0878,58853.0,58852.0,0.02317911]
[1724091442872,0.0878,58853.0,58852.0,0.517962]
[1724091443079,0.0878,58853.0,58852.0,0.53293111]
[1724091443299,0.0878,58853.0,58852.0,0.87276611]
[1724091443300,0.01,58853.0,58852.0,0.87276611]
[1724091443506,0.1414,58857.0,58856.0,0.169906]
[1724091443921,0.0801,58857.0,58856.0,0.86449718]
[1724091444129,0.0648,58861.0,58856.0,0.86449718]
[1724091444130,0.1449,58861.0,58860.0,0.509683]
[1724091444552,0.1449,58861.0,58860.0,0.01496524]
[1724091444752,0.1449,58861.0,58860.0,0.18485924]
[1724091444976,0.1449,58861.0,58860.0,0.169894]
[1724091445198,0.1449,58861.0,58860.0,0.18485924]
[1724091445608,0.0801,58861.0,58860.0,0.52464824]
[1724091445814,0.0801,58861.0,58860.0,0.18485924]
[1724091446484,0.0801,58861.0,58860.0,0.86443724]
[1724091446710,0.00090311,58864.0,58863.0,0.84943]
[1724091446911,0.00090311,58864.0,58863.0,1.36055077]
[1724091447167,0.00090311,58864.0,58863.0,1.37551095]
[1724091447369,0.00090311,58864.0,58863.0,0.86439018]
[1724091448194,0.00990311,58864.0,58863.0,0.86539018]
[1724091449044,0.01790311,58864.0,58863.0,0.86639018]
[1724091449693,0.01790311,58864.0,58863.0,1.20616218]
[1724091451569,0.01790311,58864.0,58863.0,1.71728295]
[1724091451781,0.01790311,58864.0,58863.0,1.87818295]
[1724091451992,0.00990311,58864.0,58863.0,1.87718295]
[1724091452444,0.00990311,58864.0,58863.0,2.22295495]
[1724091452657,0.00990311,58864.0,58863.0,2.24495495]
[1724091452871,0.00990311,58864.0,58863.0,2.24095495]
[1724091453078,0.00090311,58864.0,58863.0,1.87618295]
[1724091453292,0.00190311,58864.0,58863.0,1.55141095]
[1724091453738,0.00090311,58864.0,58863.0,1.47551095]
[1724091454168,0.00190311,58864.0,58863.0,1.48951095]
[1724091454382,0.00090311,58864.0,58863.0,1.47551095]
[1724091455297,0.00290311,58864.0,58863.0,1.50351095]
[1724091456027,0.00190311,58864.0,58863.0,1.48951095]
[1724091456263,0.00290311,58864.0,58863.0,1.49751095]
[1724091456508,0.00190311,58864.0,58863.0,1.48351095]
[1724091456727,0.00190311,58864.0,58863.0,1.82328295]
[1724091456967,0.00290311,58864.0,58863.0,1.83128295]
[1724091457213,0.00290311,58864.0,58863.0,2.26385495]
[1724091457489,0.00290311,58864.0,58863.0,2.26785495]
[1724091457768,0.0765,58887.0,58886.0,0.849097]
[1724091458007,0.0765,58891.0,58890.0,0.169808]
[1724091458212,0.0765,58891.0,58890.0,0.84904]
[1724091458685,0.0765,58891.0,58890.0,0.86390331]
[1724091459192,0.0811,58899.0,58898.0,0.509355]
[1724091459656,0.0811,58899.0,58898.0,0.18464445]
[1724091459859,0.0811,58899.0,58898.0,0.01485945]
[1724091460268,0.0811,58899.0,58898.0,0.509355]
[1724091460485,0.0811,58899.0,58898.0,0.52421445]
[1724091460747,0.0811,58899.0,58898.0,0.18464445]
[1724091460984,0.0811,58899.0,58898.0,0.52521445]
[1724091461477,0.0811,58899.0,58898.0,0.86378445]
[1724091461716,0.0811,58899.0,58898.0,1.03613322]
[1724091462174,0.0811,58899.0,58898.0,1.03713322]
[1724091462379,0.00090311,58900.0,58899.0,0.84891]
[1724091462559,0.00090311,58900.0,58899.0,1.188474]
[1724091462785,0.00090311,58900.0,58899.0,0.86370396]
[1724091463018,0.00090311,58900.0,58899.0,1.20326796]
[1724091463426,0.00090311,58900.0,58899.0,1.37461673]
[1724091463828,0.00090311,58900.0,58899.0,1.43741673]
[1724091464559,0.00090311,58900.0,58899.0,1.37461673]
[1724091464865,0.00190311,58900.0,58899.0,0.86370396]
[1724091465790,0.00190311,58900.0,58899.0,1.37461673]
[1724091466306,0.00190311,58900.0,58899.0,0.86370396]
[1724091466516,0.00190311,58900.0,58899.0,0.52413996]
[1724091466920,0.00190311,58900.0,58899.0,0.86370396]
[1724091468756,0.00190311,58900.0,58899.0,1.37461673]
[1724091470313,0.00190311,58900.0,58899.0,1.03505273]
[1724091471525,0.07850311,58900.0,58899.0,0.86370396]
[1724091472726,0.00190311,58900.0,58899.0,0.86370396]
[1724091473744,0.00190311,58900.0,58899.0,0.52413996]
[1724091474166,0.00190311,58900.0,58899.0,0.86370396]
[1724091478927,0.14430311,58900.0,58899.0,0.01479396]
[1724091479129,0.14430311,58900.0,58899.0,0.52413996]
[1724091479323,0.14430311,58900.0,58899.0,0.509346]
[1724091479454,0.14430311,58900.0,58899.0,0.52404959]
[1724091480675,0.08180311,58900.0,58899.0,0.52404959]
[1724091480875,0.08180311,58900.0,58899.0,0.86361359]
[1724091481121,0.08180311,58900.0,58899.0,1.03496236]
[1724091481320,0.00190311,58900.0,58899.0,1.03496236]
[1724091481538,0.00190311,58900.0,58899.0,1.37452636]
[1724091481971,0.00190311,58900.0,58899.0,1.72662636]
[1724091482408,0.00190311,58900.0,58899.0,2.06619036]
[1724091483808,0.00190311,58900.0,58899.0,1.37452636]
[1724091484012,0.08250311,58900.0,58899.0,1.37452636]
[1724091484638,0.08250311,58900.0,58899.0,1.03496236]
[1724091484847,0.14510311,58900.0,58899.0,0.01470359]
[1724091485426,0.14510311,58900.0,58895.0,0.339583]
[1724091485636,0.14510311,58900.0,58897.0,0.169787]
[1724091485955,0.14510311,58900.0,58897.0,0.169786]
[1724091486152,0.21054542,58900.0,58898.0,0.01471329]
[1724091486330,0.591846,58899.0,58898.0,0.01471329]
[1724091486531,0.99521,58899.0,58898.0,0.01471329]
[1724091486738,0.339587,58896.0,58889.0,0.16981]
[1724091486950,0.0825,58892.0,58885.0,0.339643]
[1724091487158,0.0825,58892.0,58891.0,0.849022]
[1724091487376,0.0825,58892.0,58891.0,1.35998077]
[1724091487580,0.0825,58892.0,58891.0,1.03417655]
[1724091487829,0.0825,58892.0,58891.0,0.52321778]
[1724091487994,0.0835,58892.0,58891.0,0.52321778]
[1724091488614,0.0835,58892.0,58891.0,0.86282778]
[1724091489536,0.1449,58892.0,58891.0,0.18361078]
[1724091489915,0.1439,58892.0,58891.0,0.18361078]
[1724091490113,0.1489,58892.0,58891.0,0.18361078]
[1724091490742,0.1529,58892.0,58891.0,0.01380578]
[1724091491282,0.1529,58892.0,58891.0,0.169805]
[1724091491503,0.1529,58892.0,58891.0,0.18361078]
[1724091492445,0.1529,58892.0,58891.0,0.86283078]
[1724091492697,0.009,58892.0,58891.0,1.20244078]
[1724091493763,0.005,58892.0,58891.0,1.37378955]
[1724091493966,0.083,58896.0,58895.0,0.50938]
[1724091494318,0.083,58896.0,58895.0,0.86324544]
[1724091494784,0.083,58896.0,58895.0,1.03459421]
[1724091495060,0.00090311,58900.0,58899.0,0.84891]
[1724091495061,0.08390311,58900.0,58899.0,0.84891]
[1724091495621,0.08390311,58900.0,58899.0,0.86318651]
[1724091496737,0.00090311,58900.0,58899.0,1.43599928]